[Event "*** Titled Tuesday 3|2 Blitz"]
[Site "Chess.com"]
[Date "2016.05.03"]
[Round "3"]
[White "Colombiano07"]
[Black "PowerThinking2650"]
[Result "0-1"]
[WhiteElo "2241"]
[BlackElo "2162"]
[TimeControl "180+2"]
[EndTime "11:36:24 PDT"]
[Termination "PowerThinking2650 won on time"]

1. e4 {[%clk 0:02:58.7]} 1... e5 {[%clk 0:03:00.4]} 2. Nf3 {[%clk 0:02:58.8]}
2... Nc6 {[%clk 0:03:01.3]} 3. Bb5 {[%clk 0:02:59.1]} 3... a6 {[%clk 0:03:02.1]}
4. Ba4 {[%clk 0:02:58.5]} 4... Nf6 {[%clk 0:03:02.1]} 5. O-O {[%clk 0:02:58.9]}
5... Be7 {[%clk 0:03:03.6]} 6. Re1 {[%clk 0:02:59.3]} 6... b5 {[%clk 0:03:04.6]}
7. Bb3 {[%clk 0:02:59.6]} 7... d6 {[%clk 0:03:06.5]} 8. c3 {[%clk 0:02:59.5]}
8... O-O {[%clk 0:03:05]} 9. d4 {[%clk 0:03:00]} 9... Bg4 {[%clk 0:03:02.2]} 10.
Be3 {[%clk 0:02:59.3]} 10... exd4 {[%clk 0:03:01.3]} 11. cxd4 {[%clk 0:02:59.8]}
11... d5 {[%clk 0:03:02.5]} 12. e5 {[%clk 0:03:01.1]} 12... Ne4 {[%clk
0:03:03.3]} 13. Nc3 {[%clk 0:03:01]} 13... Nxc3 {[%clk 0:03:04.1]} 14. bxc3
{[%clk 0:03:01.4]} 14... Qd7 {[%clk 0:03:05.5]} 15. h3 {[%clk 0:03:00.7]} 15...
Bf5 {[%clk 0:03:00.4]} 16. Nd2 {[%clk 0:02:50.3]} 16... Na5 {[%clk 0:02:50.6]}
17. Qf3 {[%clk 0:02:47.4]} 17... Nxb3 {[%clk 0:02:47.1]} 18. axb3 {[%clk
0:02:47.2]} 18... f6 {[%clk 0:02:40.3]} 19. Bf4 {[%clk 0:02:42.2]} 19... fxe5
{[%clk 0:02:33.9]} 20. Bxe5 {[%clk 0:02:42.7]} 20... Bg5 {[%clk 0:02:29.1]} 21.
Nf1 {[%clk 0:02:34]} 21... c6 {[%clk 0:02:16.9]} 22. Qg3 {[%clk 0:02:16.2]}
22... Bh6 {[%clk 0:02:01.4]} 23. Ne3 {[%clk 0:02:16.5]} 23... a5 {[%clk
0:01:48.6]} 24. Ng4 {[%clk 0:02:07]} 24... Bxg4 {[%clk 0:01:46.7]} 25. hxg4
{[%clk 0:02:07.8]} 25... Bg5 {[%clk 0:01:36.6]} 26. f4 {[%clk 0:02:08.1]} 26...
Be7 {[%clk 0:01:33.5]} 27. f5 {[%clk 0:02:01.6]} 27... Bg5 {[%clk 0:01:30.5]}
28. Re2 {[%clk 0:01:48.3]} 28... h6 {[%clk 0:01:21.9]} 29. Rae1 {[%clk
0:01:42.9]} 29... a4 {[%clk 0:01:21.5]} 30. bxa4 {[%clk 0:01:41.5]} 30... bxa4
{[%clk 0:01:22.5]} 31. Bd6 {[%clk 0:01:41.2]} 31... Rfe8 {[%clk 0:01:21.9]} 32.
Ba3 {[%clk 0:01:38.7]} 32... Rxe2 {[%clk 0:01:15.7]} 33. Rxe2 {[%clk 0:01:39.5]}
33... Re8 {[%clk 0:01:16.3]} 34. Qe1 {[%clk 0:01:30.9]} 34... Rxe2 {[%clk
0:01:11.5]} 35. Qxe2 {[%clk 0:01:31.7]} 35... Kf7 {[%clk 0:01:12.2]} 36. Qe5
{[%clk 0:01:29.1]} 36... Be7 {[%clk 0:01:10.7]} 37. Bc1 {[%clk 0:01:12.2]} 37...
a3 {[%clk 0:01:08.4]} 38. Qb8 {[%clk 0:01:12.6]} 38... Bd6 {[%clk 0:00:40.7]}
39. Qa8 {[%clk 0:01:00.3]} 39... Qe7 {[%clk 0:00:41.4]} 40. Kf2 {[%clk
0:00:59.7]} 40... Qh4+ {[%clk 0:00:40.6]} 41. Ke3 {[%clk 0:00:30.6]} 41... Qg5+
{[%clk 0:00:37.3]} 42. Kf3 {[%clk 0:00:27.8]} 42... Qxc1 {[%clk 0:00:35.1]} 43.
Qxc6 {[%clk 0:00:27.9]} 43... Qf4+ {[%clk 0:00:33.2]} 44. Ke2 {[%clk 0:00:29.3]}
44... Qxg4+ {[%clk 0:00:27.1]} 45. Kd2 {[%clk 0:00:29]} 45... Bf4+ {[%clk
0:00:26.8]} 46. Kc2 {[%clk 0:00:29.3]} 46... Qxf5+ {[%clk 0:00:27.7]} 47. Kb3
{[%clk 0:00:30.2]} 47... Bc1 {[%clk 0:00:26.2]} 48. Qc7+ {[%clk 0:00:22.1]}
48... Kg8 {[%clk 0:00:26.3]} 49. Qd8+ {[%clk 0:00:14.8]} 49... Kh7 {[%clk
0:00:27.1]} 50. g4 {[%clk 0:00:11.7]} 50... Qb1+ {[%clk 0:00:25.1]} 0-1

[Event "*** Titled Tuesday 3|2 Blitz"]
[Site "Chess.com"]
[Date "2016.05.03"]
[Round "3"]
[White "chito89"]
[Black "Ginger_GM"]
[Result "1-0"]
[WhiteElo "2657"]
[BlackElo "2551"]
[TimeControl "180+2"]
[EndTime "11:36:35 PDT"]
[Termination "chito89 won by resignation"]

1. e4 {[%clk 0:03:01.9]} 1... c5 {[%clk 0:02:57.8]} 2. Nc3 {[%clk 0:03:02.6]}
2... a6 {[%clk 0:02:58]} 3. g3 {[%clk 0:03:02.4]} 3... b5 {[%clk 0:02:58.5]} 4.
Bg2 {[%clk 0:03:03.4]} 4... Bb7 {[%clk 0:03:00]} 5. d3 {[%clk 0:03:03.9]} 5...
g6 {[%clk 0:03:00.4]} 6. f4 {[%clk 0:03:04]} 6... Bg7 {[%clk 0:03:00.4]} 7. Nf3
{[%clk 0:03:05.3]} 7... d6 {[%clk 0:03:01.1]} 8. O-O {[%clk 0:03:06.1]} 8... Nc6
{[%clk 0:02:59.4]} 9. Be3 {[%clk 0:02:55.2]} 9... Nf6 {[%clk 0:02:54.7]} 10. h3
{[%clk 0:02:54.4]} 10... Nd7 {[%clk 0:02:51.4]} 11. Qd2 {[%clk 0:02:47.5]} 11...
Nd4 {[%clk 0:02:49.7]} 12. Rae1 {[%clk 0:02:42.6]} 12... O-O {[%clk 0:02:49.7]}
13. Nd1 {[%clk 0:02:30.6]} 13... e6 {[%clk 0:02:42.1]} 14. c3 {[%clk 0:02:26.3]}
14... Nxf3+ {[%clk 0:02:42.5]} 15. Bxf3 {[%clk 0:02:27.8]} 15... f5 {[%clk
0:02:39]} 16. Qg2 {[%clk 0:02:24.2]} 16... Nf6 {[%clk 0:02:11.8]} 17. Nf2 {[%clk
0:02:24.3]} 17... Qc7 {[%clk 0:01:55.4]} 18. d4 {[%clk 0:02:13.8]} 18... cxd4
{[%clk 0:01:51.6]} 19. Bxd4 {[%clk 0:02:14.3]} 19... e5 {[%clk 0:01:49.7]} 20.
Be3 {[%clk 0:02:03.9]} 20... fxe4 {[%clk 0:01:44.2]} 21. Nxe4 {[%clk 0:02:03.5]}
21... Nd5 {[%clk 0:01:41.4]} 22. Nf6+ {[%clk 0:01:56.9]} 22... Nxf6 {[%clk
0:01:41.4]} 23. Bxb7 {[%clk 0:01:58]} 23... Rab8 {[%clk 0:01:42.7]} 24. fxe5
{[%clk 0:01:38.1]} 24... dxe5 {[%clk 0:01:40.2]} 25. Be4 {[%clk 0:01:30.1]}
25... b4 {[%clk 0:01:38.8]} 26. Bd5+ {[%clk 0:01:18.1]} 26... Nxd5 {[%clk
0:01:28.2]} 27. Qxd5+ {[%clk 0:01:18.2]} 27... Kh8 {[%clk 0:01:29.4]} 28. Rxf8+
{[%clk 0:00:54.4]} 28... Rxf8 {[%clk 0:01:23.9]} 29. cxb4 {[%clk 0:00:53.3]}
29... e4 {[%clk 0:01:10.4]} 30. Kg2 {[%clk 0:00:44.2]} 30... Qc2+ {[%clk
0:01:09.4]} 31. Qd2 {[%clk 0:00:44.5]} 31... Qc4 {[%clk 0:00:59]} 32. a3 {[%clk
0:00:34.6]} 32... h5 {[%clk 0:00:46.9]} 33. Rc1 {[%clk 0:00:33.3]} 33... Qf7
{[%clk 0:00:47.4]} 34. Qe2 {[%clk 0:00:31.9]} 34... Qb3 {[%clk 0:00:46.3]} 35.
Rc2 {[%clk 0:00:17.6]} 35... Rf3 {[%clk 0:00:47.1]} 36. Bf2 {[%clk 0:00:18]}
36... h4 {[%clk 0:00:35.8]} 37. Qxe4 {[%clk 0:00:17.6]} 37... Rxg3+ {[%clk
0:00:28.7]} 38. Bxg3 {[%clk 0:00:17.6]} 38... Qxg3+ {[%clk 0:00:30.4]} 39. Kf1
{[%clk 0:00:19.1]} 39... Qxh3+ {[%clk 0:00:31.6]} 40. Ke2 {[%clk 0:00:20]} 40...
Qg3 {[%clk 0:00:26.6]} 41. Rc4 {[%clk 0:00:18.7]} 41... Bf6 {[%clk 0:00:15.4]}
42. Qg4 {[%clk 0:00:18.1]} 42... Qe5+ {[%clk 0:00:15.9]} 43. Kd3 {[%clk
0:00:18.8]} 43... Qd5+ {[%clk 0:00:16.7]} 44. Kc2 {[%clk 0:00:19.9]} 44... Kg7
{[%clk 0:00:17]} 45. Qe4 {[%clk 0:00:18.4]} 45... Qg5 {[%clk 0:00:17.1]} 46.
Rc7+ {[%clk 0:00:18]} 46... Kh6 {[%clk 0:00:17.9]} 47. Rc5 {[%clk 0:00:18.7]}
47... Qg3 {[%clk 0:00:17.8]} 48. Qd3 {[%clk 0:00:18.6]} 48... Qg2+ {[%clk
0:00:18.6]} 49. Qd2+ {[%clk 0:00:20.2]} 49... Qxd2+ {[%clk 0:00:19.2]} 50. Kxd2
{[%clk 0:00:21.7]} 50... h3 {[%clk 0:00:20.6]} 51. Ke2 {[%clk 0:00:23]} 51... h2
{[%clk 0:00:21.6]} 52. Rc1 {[%clk 0:00:24]} 52... Bxb2 {[%clk 0:00:22.7]} 53.
Rh1 {[%clk 0:00:25.5]} 53... Be5 {[%clk 0:00:23.8]} 54. Kf3 {[%clk 0:00:26.9]}
54... Kg5 {[%clk 0:00:25.2]} 55. a4 {[%clk 0:00:27.8]} 55... Kf6 {[%clk
0:00:26.2]} 56. b5 {[%clk 0:00:28.1]} 56... axb5 {[%clk 0:00:27.5]} 57. a5
{[%clk 0:00:29.8]} 57... Bb8 {[%clk 0:00:25.6]} 58. a6 {[%clk 0:00:31.2]} 58...
Ke6 {[%clk 0:00:26.2]} 59. Rxh2 {[%clk 0:00:32.8]} 59... Kd5 {[%clk 0:00:25.4]}
60. Rh7 {[%clk 0:00:34.2]} 60... b4 {[%clk 0:00:22.9]} 61. Rb7 {[%clk
0:00:35.1]} 61... b3 {[%clk 0:00:18.3]} 62. Rxb8 {[%clk 0:00:36]} 1-0

[Event "*** Titled Tuesday 3|2 Blitz"]
[Site "Chess.com"]
[Date "2016.05.03"]
[Round "3"]
[White "dretch"]
[Black "rookoco"]
[Result "1/2-1/2"]
[WhiteElo "2556"]
[BlackElo "2424"]
[TimeControl "180+2"]
[EndTime "11:36:36 PDT"]
[Termination "Game drawn - insufficient material"]

1. d4 {[%clk 0:03:01.9]} 1... d5 {[%clk 0:03:00.7]} 2. c4 {[%clk 0:03:02.6]}
2... dxc4 {[%clk 0:03:01.6]} 3. Nf3 {[%clk 0:02:55.7]} 3... a6 {[%clk
0:03:00.4]} 4. Nc3 {[%clk 0:02:40]} 4... b5 {[%clk 0:02:56.6]} 5. a4 {[%clk
0:02:41.2]} 5... b4 {[%clk 0:02:55.8]} 6. Ne4 {[%clk 0:02:42.3]} 6... e6 {[%clk
0:02:48.9]} 7. e3 {[%clk 0:02:35.3]} 7... Bb7 {[%clk 0:02:48]} 8. Qc2 {[%clk
0:02:33.3]} 8... Nd7 {[%clk 0:02:41.9]} 9. Bxc4 {[%clk 0:02:33.5]} 9... Ngf6
{[%clk 0:02:40.9]} 10. Nxf6+ {[%clk 0:02:23.3]} 10... Qxf6 {[%clk 0:02:41.6]}
11. Bd3 {[%clk 0:02:12.5]} 11... c5 {[%clk 0:02:31.9]} 12. Be4 {[%clk
0:02:10.8]} 12... b3 {[%clk 0:02:26.4]} 13. Qb1 {[%clk 0:02:11.7]} 13... Bd5
{[%clk 0:02:20.7]} 14. O-O {[%clk 0:02:04]} 14... c4 {[%clk 0:02:15.3]} 15. Bxd5
{[%clk 0:01:59.7]} 15... exd5 {[%clk 0:02:15.1]} 16. e4 {[%clk 0:02:00.6]} 16...
Bb4 {[%clk 0:02:11.6]} 17. Bg5 {[%clk 0:01:31.9]} 17... Qg6 {[%clk 0:02:05.7]}
18. Bd2 {[%clk 0:01:16.3]} 18... a5 {[%clk 0:01:56.9]} 19. exd5 {[%clk 0:01:14]}
19... O-O {[%clk 0:01:56.8]} 20. Bxb4 {[%clk 0:00:58.8]} 20... Qxb1 {[%clk
0:01:42.2]} 21. Rfxb1 {[%clk 0:00:53.2]} 21... axb4 {[%clk 0:01:43.2]} 22. Nd2
{[%clk 0:00:35.1]} 22... Rfc8 {[%clk 0:01:42.3]} 23. Rc1 {[%clk 0:00:36.1]}
23... c3 {[%clk 0:01:39.8]} 24. Nxb3 {[%clk 0:00:36.5]} 24... cxb2 {[%clk
0:01:39.4]} 25. Rxc8+ {[%clk 0:00:36.7]} 25... Rxc8 {[%clk 0:01:40.5]} 26. Rb1
{[%clk 0:00:37.4]} 26... Rc2 {[%clk 0:01:26.4]} 27. a5 {[%clk 0:00:38.4]} 27...
Kf8 {[%clk 0:01:27.7]} 28. d6 {[%clk 0:00:25.7]} 28... Ke8 {[%clk 0:01:28.2]}
29. Kf1 {[%clk 0:00:23.1]} 29... Kd8 {[%clk 0:01:05.1]} 30. Ke1 {[%clk
0:00:22.2]} 30... Kc8 {[%clk 0:01:06.4]} 31. Kd1 {[%clk 0:00:11.6]} 31... Rxf2
{[%clk 0:01:06.9]} 32. Nd2 {[%clk 0:00:12.9]} 32... Rxg2 {[%clk 0:00:52]} 33.
Rxb2 {[%clk 0:00:13.8]} 33... Rg5 {[%clk 0:00:52.3]} 34. Nc4 {[%clk 0:00:07.1]}
34... Rb5 {[%clk 0:00:37.8]} 35. Kc2 {[%clk 0:00:07.1]} 35... Kb7 {[%clk
0:00:38.5]} 36. Kb3 {[%clk 0:00:06.9]} 36... Ka6 {[%clk 0:00:36.8]} 37. Re2
{[%clk 0:00:05.1]} 37... Rd5 {[%clk 0:00:17.3]} 38. Re7 {[%clk 0:00:05.2]} 38...
Nf6 {[%clk 0:00:14.2]} 39. Rxf7 {[%clk 0:00:06.5]} 39... Rxd4 {[%clk 0:00:15.7]}
40. Rxg7 {[%clk 0:00:06.8]} 40... Nd5 {[%clk 0:00:14.4]} 41. Rg3 {[%clk
0:00:03.8]} 41... Nf4 {[%clk 0:00:12.7]} 42. Rf3 {[%clk 0:00:02.9]} 42... Ne2
{[%clk 0:00:11.5]} 43. Kxb4 {[%clk 0:00:03.6]} 43... Nc1 {[%clk 0:00:12.3]} 44.
Kc5 {[%clk 0:00:03.7]} 44... Rd1 {[%clk 0:00:13.3]} 45. Rf6 {[%clk 0:00:04.7]}
45... Nd3+ {[%clk 0:00:14.5]} 46. Kc6 {[%clk 0:00:05.1]} 46... Nb4+ {[%clk
0:00:15.5]} 47. Kd7 {[%clk 0:00:06.4]} 47... Nd5 {[%clk 0:00:15.9]} 48. Rh6
{[%clk 0:00:07]} 48... Kb5 {[%clk 0:00:17.4]} 49. Ne5 {[%clk 0:00:08]} 49...
Kxa5 {[%clk 0:00:18.1]} 50. Rxh7 {[%clk 0:00:08.8]} 50... Nf6+ {[%clk
0:00:19.3]} 51. Ke7 {[%clk 0:00:08.5]} 51... Nxh7 {[%clk 0:00:20.8]} 52. d7
{[%clk 0:00:09.5]} 52... Kb5 {[%clk 0:00:17.9]} 53. h4 {[%clk 0:00:09.7]} 53...
Kc5 {[%clk 0:00:15.7]} 54. d8=R {[%clk 0:00:09.3]} 54... Rxd8 {[%clk 0:00:13.6]}
55. Kxd8 {[%clk 0:00:10.9]} 55... Kd6 {[%clk 0:00:15.1]} 56. Nf3 {[%clk
0:00:10.3]} 56... Ke6 {[%clk 0:00:16.3]} 57. Ke8 {[%clk 0:00:11.6]} 57... Kf5
{[%clk 0:00:17.3]} 58. Kf7 {[%clk 0:00:12.6]} 58... Kg4 {[%clk 0:00:18.7]} 59.
Kg7 {[%clk 0:00:12.6]} 59... Kxf3 {[%clk 0:00:19.7]} 60. h5 {[%clk 0:00:11.5]}
60... Kg4 {[%clk 0:00:20.9]} 61. Kxh7 {[%clk 0:00:12]} 61... Kxh5 {[%clk
0:00:21.8]} 1/2-1/2

[Event "*** Titled Tuesday 3|2 Blitz"]
[Site "Chess.com"]
[Date "2016.05.03"]
[Round "3"]
[White "Alexander_Donchenko"]
[Black "vovkcoach"]
[Result "0-1"]
[WhiteElo "2643"]
[BlackElo "2532"]
[TimeControl "180+2"]
[EndTime "11:36:59 PDT"]
[Termination "vovkcoach won by resignation"]

1. d4 {[%clk 0:03:01.9]} 1... Nf6 {[%clk 0:03:00.5]} 2. c4 {[%clk 0:03:03.1]}
2... e6 {[%clk 0:03:01.6]} 3. g3 {[%clk 0:03:03.4]} 3... Bb4+ {[%clk 0:02:49.9]}
4. Bd2 {[%clk 0:03:04.3]} 4... a5 {[%clk 0:02:48]} 5. Bg2 {[%clk 0:03:05.3]}
5... O-O {[%clk 0:02:48.5]} 6. e4 {[%clk 0:03:06.6]} 6... d6 {[%clk 0:02:44.8]}
7. Ne2 {[%clk 0:03:07.3]} 7... e5 {[%clk 0:02:44.8]} 8. O-O {[%clk 0:03:07.4]}
8... Re8 {[%clk 0:02:18]} 9. Bg5 {[%clk 0:02:42.8]} 9... exd4 {[%clk 0:02:15.7]}
10. Qxd4 {[%clk 0:02:44.7]} 10... Nc6 {[%clk 0:02:11]} 11. Qd3 {[%clk
0:02:40.5]} 11... Ne5 {[%clk 0:01:59.7]} 12. Qc2 {[%clk 0:02:40.6]} 12... h6
{[%clk 0:01:51.7]} 13. Bf4 {[%clk 0:02:29.8]} 13... Bg4 {[%clk 0:01:49.3]} 14.
h3 {[%clk 0:02:02.9]} 14... Be6 {[%clk 0:01:39.3]} 15. b3 {[%clk 0:01:39.3]}
15... Qd7 {[%clk 0:01:39.4]} 16. Kh2 {[%clk 0:01:37.7]} 16... b5 {[%clk
0:01:40.4]} 17. cxb5 {[%clk 0:01:31.9]} 17... Qxb5 {[%clk 0:01:39.6]} 18. Nd4
{[%clk 0:01:32]} 18... Qd3 {[%clk 0:01:40.5]} 19. Qxd3 {[%clk 0:01:28]} 19...
Nxd3 {[%clk 0:01:42.4]} 20. Nxe6 {[%clk 0:01:26.6]} 20... fxe6 {[%clk
0:01:41.6]} 21. Be3 {[%clk 0:01:16.8]} 21... Rab8 {[%clk 0:01:36.7]} 22. Nd2
{[%clk 0:01:06.8]} 22... d5 {[%clk 0:01:33.7]} 23. Rfd1 {[%clk 0:00:56.6]} 23...
c5 {[%clk 0:01:33.4]} 24. exd5 {[%clk 0:00:52.7]} 24... exd5 {[%clk 0:01:35.3]}
25. Nb1 {[%clk 0:00:36.2]} 25... c4 {[%clk 0:01:32.5]} 26. bxc4 {[%clk
0:00:36.9]} 26... dxc4 {[%clk 0:01:34.4]} 27. a3 {[%clk 0:00:38.3]} 27... Bd6
{[%clk 0:01:22.1]} 28. Ra2 {[%clk 0:00:37.8]} 28... Ne4 {[%clk 0:01:19.3]} 29.
Bd4 {[%clk 0:00:31.9]} 29... Rbd8 {[%clk 0:01:11.4]} 30. Nc3 {[%clk 0:00:24.8]}
30... Nxc3 {[%clk 0:01:04.4]} 31. Bxc3 {[%clk 0:00:26.7]} 31... Bc7 {[%clk
0:00:57.1]} 32. Rc2 {[%clk 0:00:22.7]} 32... Bb6 {[%clk 0:00:55.4]} 33. Rb1
{[%clk 0:00:14.9]} 33... Rd6 {[%clk 0:00:48.8]} 34. Rb5 {[%clk 0:00:08]} 34...
Bxf2 {[%clk 0:00:47.3]} 35. Bd5+ {[%clk 0:00:07.3]} 35... Kh7 {[%clk 0:00:45.5]}
36. Bxc4 {[%clk 0:00:08.8]} 36... Re3 {[%clk 0:00:46.1]} 37. Bxd3+ {[%clk
0:00:04.6]} 37... Rdxd3 {[%clk 0:00:48]} 38. Rxf2 {[%clk 0:00:05.9]} 38... Rxc3
{[%clk 0:00:49.2]} 39. Rxa5 {[%clk 0:00:07]} 39... Rxg3 {[%clk 0:00:49.2]} 40.
h4 {[%clk 0:00:08.4]} 40... Rh3+ {[%clk 0:00:49.1]} 41. Kg1 {[%clk 0:00:10]}
41... Rxh4 {[%clk 0:00:51]} 42. Ra2 {[%clk 0:00:10.9]} 42... Rg4+ {[%clk
0:00:47.4]} 43. Kf1 {[%clk 0:00:12.3]} 43... Rc1+ {[%clk 0:00:46]} 44. Kf2
{[%clk 0:00:13.2]} 44... Rcg1 {[%clk 0:00:47]} 45. Re2 {[%clk 0:00:10.1]} 45...
R4g2+ {[%clk 0:00:38.7]} 46. Ke3 {[%clk 0:00:11.5]} 46... Rxe2+ {[%clk
0:00:40.6]} 47. Kxe2 {[%clk 0:00:13.4]} 47... Ra1 {[%clk 0:00:41.5]} 48. Kf2
{[%clk 0:00:14.1]} 48... g5 {[%clk 0:00:42.4]} 49. Kg3 {[%clk 0:00:15.2]} 49...
Kg6 {[%clk 0:00:43.3]} 50. Kg4 {[%clk 0:00:16.6]} 50... h5+ {[%clk 0:00:43.8]}
51. Kh3 {[%clk 0:00:17.9]} 51... h4 {[%clk 0:00:42]} 52. Kg4 {[%clk 0:00:16.8]}
52... Rg1+ {[%clk 0:00:42.1]} 53. Kf3 {[%clk 0:00:18.4]} 53... h3 {[%clk
0:00:41.2]} 54. Ra6+ {[%clk 0:00:16.9]} 54... Kh5 {[%clk 0:00:41.1]} 55. Ra8
{[%clk 0:00:18.5]} 55... g4+ {[%clk 0:00:41]} 56. Kf2 {[%clk 0:00:20.2]} 56...
Rg2+ {[%clk 0:00:42.2]} 57. Kf1 {[%clk 0:00:22.1]} 57... Ra2 {[%clk 0:00:44.1]}
58. Kg1 {[%clk 0:00:20.9]} 58... Kh4 {[%clk 0:00:45.2]} 59. a4 {[%clk
0:00:21.3]} 59... Kg3 {[%clk 0:00:46]} 60. Kf1 {[%clk 0:00:23]} 60... h2 {[%clk
0:00:46.9]} 0-1

[Event "*** Titled Tuesday 3|2 Blitz"]
[Site "Chess.com"]
[Date "2016.05.03"]
[Round "3"]
[White "kikydu96"]
[Black "stuffings101"]
[Result "1-0"]
[WhiteElo "2297"]
[BlackElo "2107"]
[TimeControl "180+2"]
[EndTime "11:37:02 PDT"]
[Termination "kikydu96 won by resignation"]

1. b3 {[%clk 0:03:01.9]} 1... Nf6 {[%clk 0:02:59.5]} 2. Bb2 {[%clk 0:03:03]}
2... g6 {[%clk 0:03:01.4]} 3. e3 {[%clk 0:03:03.7]} 3... Bg7 {[%clk 0:02:59.7]}
4. Nf3 {[%clk 0:03:03.9]} 4... O-O {[%clk 0:03:01]} 5. Be2 {[%clk 0:03:05.1]}
5... d6 {[%clk 0:03:01.7]} 6. O-O {[%clk 0:03:06.2]} 6... e5 {[%clk 0:03:02.2]}
7. c4 {[%clk 0:03:06.7]} 7... Re8 {[%clk 0:03:03.2]} 8. d3 {[%clk 0:03:07.3]}
8... Nbd7 {[%clk 0:03:04.1]} 9. Nbd2 {[%clk 0:03:08.2]} 9... c6 {[%clk
0:03:05.6]} 10. h3 {[%clk 0:03:09.1]} 10... a6 {[%clk 0:03:06.4]} 11. a3 {[%clk
0:03:10]} 11... b6 {[%clk 0:03:06.7]} 12. b4 {[%clk 0:03:11]} 12... Bb7 {[%clk
0:03:07.1]} 13. Qb3 {[%clk 0:03:11.8]} 13... Qe7 {[%clk 0:03:03.5]} 14. a4
{[%clk 0:03:11.1]} 14... a5 {[%clk 0:02:57.3]} 15. bxa5 {[%clk 0:03:07.1]} 15...
Rxa5 {[%clk 0:02:49]} 16. Bc3 {[%clk 0:03:06.8]} 16... Ra7 {[%clk 0:02:42.1]}
17. Rfb1 {[%clk 0:03:01]} 17... Rb8 {[%clk 0:02:37]} 18. Bf1 {[%clk 0:02:45.7]}
18... Ba8 {[%clk 0:02:18.7]} 19. d4 {[%clk 0:02:45.7]} 19... exd4 {[%clk
0:02:02.9]} 20. exd4 {[%clk 0:02:41.8]} 20... h5 {[%clk 0:01:59.1]} 21. Re1
{[%clk 0:02:41.3]} 21... Qf8 {[%clk 0:01:57.9]} 22. Ng5 {[%clk 0:02:36.9]} 22...
d5 {[%clk 0:01:49.1]} 23. Ndf3 {[%clk 0:02:33.3]} 23... Re8 {[%clk 0:01:23.5]}
24. Ne5 {[%clk 0:02:30.1]} 24... Nxe5 {[%clk 0:01:21]} 25. dxe5 {[%clk
0:02:30.7]} 25... Ne4 {[%clk 0:01:15.1]} 26. Nxe4 {[%clk 0:02:29]} 26... dxe4
{[%clk 0:01:16.1]} 27. Rxe4 {[%clk 0:02:29.8]} 27... c5 {[%clk 0:01:17.2]} 28.
Ree1 {[%clk 0:02:27.3]} 28... Re6 {[%clk 0:01:08]} 29. a5 {[%clk 0:02:16.7]}
29... bxa5 {[%clk 0:01:05.3]} 30. f4 {[%clk 0:01:57.6]} 30... Kh7 {[%clk
0:01:01.1]} 31. Rxa5 {[%clk 0:01:57.5]} 31... Rxa5 {[%clk 0:00:58.1]} 32. Bxa5
{[%clk 0:01:59.4]} 32... Qc8 {[%clk 0:00:54.2]} 33. Qg3 {[%clk 0:01:47.1]} 33...
Ra6 {[%clk 0:00:48.8]} 34. Bc3 {[%clk 0:01:28.3]} 34... Ra3 {[%clk 0:00:45.1]}
35. Re3 {[%clk 0:01:26.7]} 35... Qb7 {[%clk 0:00:43.2]} 36. e6 {[%clk 0:01:21]}
36... Rxc3 {[%clk 0:00:25.1]} 37. Rxc3 {[%clk 0:00:59.6]} 37... Bxc3 {[%clk
0:00:25.5]} 38. Qxc3 {[%clk 0:01:00.5]} 38... fxe6 {[%clk 0:00:27]} 39. Qf6
{[%clk 0:00:54.3]} 39... Qe4 {[%clk 0:00:26.3]} 40. Qe5 {[%clk 0:00:46.6]} 40...
Qd4+ {[%clk 0:00:21.3]} 41. Qxd4 {[%clk 0:00:44]} 41... cxd4 {[%clk 0:00:22.8]}
42. h4 {[%clk 0:00:45.4]} 42... Kg7 {[%clk 0:00:23.7]} 43. g3 {[%clk 0:00:44]}
43... Kf6 {[%clk 0:00:25.1]} 44. Kf2 {[%clk 0:00:43.4]} 44... e5 {[%clk
0:00:26.5]} 45. fxe5+ {[%clk 0:00:39.7]} 45... Kxe5 {[%clk 0:00:28.4]} 46. Bd3
{[%clk 0:00:41.1]} 46... Be4 {[%clk 0:00:22.5]} 47. Ke2 {[%clk 0:00:32]} 47...
Kf5 {[%clk 0:00:11.3]} 48. c5 {[%clk 0:00:21.1]} 48... Bxd3+ {[%clk 0:00:03.3]}
49. Kxd3 {[%clk 0:00:23]} 49... Ke5 {[%clk 0:00:03.3]} 50. c6 {[%clk 0:00:16]}
50... Kd6 {[%clk 0:00:02.6]} 51. Kxd4 {[%clk 0:00:17.9]} 51... Kxc6 {[%clk
0:00:03.7]} 52. Ke5 {[%clk 0:00:19.8]} 52... Kd7 {[%clk 0:00:04.1]} 53. Kf6
{[%clk 0:00:21.1]} 53... Kd6 {[%clk 0:00:05]} 54. Kxg6 {[%clk 0:00:22.7]} 54...
Ke6 {[%clk 0:00:05.8]} 55. Kxh5 {[%clk 0:00:24.6]} 1-0